bitfinex-derivatives/quotes_ETHF0:USTF0_20240901
["timestamp","ask_amount","ask_price","bid_price","bid_amount"]
[1725180588187,1.16604376,2479.5,2479.4,0.76840724]
[1725180592400,0.00604376,2479.5,2479.4,1.38530505]
[1725180592805,0.00604376,2479.5,2479.4,0.76840724]
[1725180593207,0.00604376,2479.5,2479.4,1.38530793]
[1725180601208,0.00604376,2479.5,2479.4,0.76839123]
[1725180602000,0.00604376,2479.5,2479.4,1.78859977]
[1725180602707,0.00604376,2479.5,2479.4,1.38525977]
[1725180609316,0.37014376,2479.5,2479.4,1.38525977]
[1725180616411,0.37014376,2479.5,2479.4,1.00485977]
[1725180616412,0.77346376,2479.5,2479.4,1.00485977]
[1725180616612,0.77346376,2479.5,2479.4,0.64231073]
[1725180616613,16.37684026,2479.5,2479.4,0.64231073]
[1725180616809,14.96521026,2479.5,2478.7,1.7481294]
[1725180617109,1.16,2478.8,2478.7,0.7556]
[1725180617305,1.16,2478.8,2478.7,1.37266805]
[1725180617511,1.5177,2478.8,2478.7,1.37266805]
[1725180618315,1.92114,2478.8,2478.7,0.7556]
[1725180618711,1.5177,2478.8,2478.7,0.7556]
[1725180619015,1.92114,2478.8,2478.7,0.3831]
[1725180619209,1.92114,2478.8,2478.4,0.757]
[1725180619406,1.5177,2478.8,2478.5,0.61694594]
[1725180619608,1.5177,2478.8,2478.4,1.1375]
[1725180619818,1.5177,2478.8,2478.5,0.61693738]
[1725180620020,1.92114,2478.8,2478.4,1.1375]
[1725180620614,1.5177,2478.8,2478.5,0.61694424]
[1725180620821,1.5177,2478.8,2478.4,1.1375]
[1725180621021,1.5177,2478.8,2478.5,0.61693446]
[1725180621322,1.5177,2478.8,2478.4,1.1375]
[1725180621520,1.92114,2478.8,2478.4,1.1375]
[1725180621914,0.40346,2478.7,2478.4,1.1375]
[1725180622221,0.40347,2478.6,2478.4,1.1375]
[1725180622619,0.40346,2478.7,2478.4,1.1375]
[1725180625712,1.5177,2478.8,2478.4,1.1375]
[1725180625914,0.76114,2478.8,2478.4,1.541]
[1725180626123,0.3577,2478.8,2478.4,1.1375]
[1725180626424,1.56343,2478.9,2478.4,1.541]
[1725180626724,1.56343,2478.9,2478.5,0.40348]
[1725180626922,1.9288,2479.1,2478.5,4.3678]
[1725180627127,1.9288,2479.1,2478.7,0.40345]
[1725180627128,0.40339,2479.1,2478.7,0.40345]
[1725180627328,1.56339,2479.1,2478.8,0.7284]
[1725180627623,1.56339,2479.1,2478.8,1.1108]
[1725180629120,1.56342,2478.9,2478.8,1.1108]
[1725180630420,0.40344,2478.8,2478.4,1.02040423]
[1725180630624,0.76374,2478.8,2478.5,1.47458885]
[1725180630818,0.76374,2478.8,2478.6,0.38798885]
[1725180631028,0.76374,2478.8,2478.5,1.0866]
[1725180631220,0.76374,2478.8,2478.6,0.38798684]
[1725180631421,0.76374,2478.8,2478.5,1.0866]
[1725180635121,0.40347,2478.6,2478.5,1.0866]
[1725180637532,1.95166,2478.7,2478.5,1.0866]
[1725180637734,1.56346,2478.7,2478.5,1.0866]
[1725180639733,1.16,2478.7,2478.5,1.0866]
[1725180640235,1.56346,2478.7,2478.5,1.0866]
[1725180645140,0.3603,2478.8,2478.5,1.0866]
[1725180645337,7.3708,2479.3,2478.5,1.0866]
[1725180645548,1.515,2479.1,2478.5,4.2944]
[1725180645743,6.17735855,2479.1,2478.7,0.40344]
[1725180646048,1.16,2479.0,2478.7,0.40344]
[1725180646238,1.56341,2479.0,2478.8,0.3834]
[1725180647638,1.16,2479.0,2478.8,0.3834]
[1725180648140,1.16,2479.0,2478.9,0.7368]
[1725180648743,1.5634,2479.0,2478.9,0.7368]
[1725180649334,0.40344,2478.8,2478.5,3.2078]
[1725180649541,0.40343,2478.9,2478.6,1.0911]
[1725180652441,1.56342,2479.0,2478.6,1.49456]
[1725180652640,1.16,2479.0,2478.7,0.40345]
[1725180653144,0.40342,2478.9,2478.6,1.49456]
[1725180653938,1.56341,2479.0,2478.6,1.49456]
[1725180655846,1.16,2479.0,2478.6,1.0911]
[1725180656145,0.40342,2478.9,2478.6,1.0911]
[1725180656547,0.40344,2478.8,2478.6,1.0911]
[1725180657238,0.40344,2478.8,2478.7,0.38799333]
[1725180657438,0.40343,2478.9,2478.6,1.0911]
[1725180657835,0.40343,2478.9,2478.7,0.38799335]
[1725180658033,0.40343,2478.9,2478.6,1.0911]
[1725180658334,0.40343,2478.9,2478.7,0.38798324]
[1725180658539,0.40343,2478.9,2478.6,1.0911]
[1725180658739,0.40343,2478.9,2478.7,0.38798417]
[1725180658940,0.40343,2478.9,2478.6,1.0911]
[1725180659142,0.40343,2478.9,2478.7,0.38798459]
[1725180659335,0.40343,2478.9,2478.8,0.38798448]
[1725180660652,0.40343,2478.9,2478.6,1.0911]
[1725180660949,0.40343,2478.9,2478.7,0.38798351]
[1725180661248,0.40343,2478.9,2478.8,0.38798147]
[1725180661756,8.75362367,2478.9,2478.8,0.38798147]
[1725180662043,0.40347,2478.6,2478.4,0.61694912]
[1725180662252,1.56347,2478.6,2478.5,1.00496951]
[1725180662542,1.56347,2478.6,2478.5,0.38802039]
[1725180664943,5.59787,2478.6,2478.5,0.38802039]
[1725180666142,5.59787,2478.6,2478.3,1.1166]
[1725180666345,0.40349,2478.5,2478.4,0.38805416]
[1725180666948,5.59789,2478.5,2478.4,0.38805416]
[1725180667145,10.62736405,2478.5,2478.0,0.61706413]
[1725180667340,4.65696405,2478.5,2478.1,1.00514572]
[1725180667546,1.16,2478.4,2478.2,0.38808159]
[1725180667740,1.16,2478.4,2478.0,0.40356]
[1725180667741,4.65696405,2478.5,2478.4,0.4035]
[1725180667938,3.16262492,2478.9,2478.5,0.40348]
[1725180668150,1.16,2478.8,2478.6,0.38805087]
[1725180668446,1.16,2478.8,2478.7,0.38805087]
[1725180669146,0.40346,2478.7,2478.5,0.3734]
[1725180669450,1.16,2478.6,2478.5,0.3734]
[1725180669747,1.16,2478.6,2478.5,1.37838659]
[1725180670252,0.40342,2478.9,2478.5,5.41278659]
[1725180670445,1.56342,2478.9,2478.6,1.00494852]
[1725180670640,1.56342,2478.9,2478.7,0.38802134]
[1725180670853,1.56342,2478.9,2478.5,0.3734]
[1725180671056,1.56342,2478.9,2478.6,0.38800368]
[1725180671257,1.56342,2478.9,2478.7,0.38800368]
[1725180671550,1.56342,2478.9,2478.5,0.3734]
[1725180671753,1.56342,2478.9,2478.6,0.38800163]
[1725180671949,1.56342,2478.9,2478.7,0.38800163]
[1725180672145,1.56342,2478.9,2478.5,0.3734]
[1725180672353,1.56342,2478.9,2478.6,0.38800739]
[1725180672544,1.16,2478.9,2478.7,0.38800739]
[1725180672745,1.16,2478.9,2478.5,0.77688]
[1725180673053,1.16,2478.9,2478.6,1.00492194]
[1725180673254,1.16,2478.9,2478.7,0.38799647]
[1725180673553,1.56342,2478.9,2478.5,0.77688]
[1725180673745,1.16,2478.9,2478.6,1.00493904]
[1725180673942,1.16,2478.9,2478.7,0.38800305]
[1725180674145,1.16,2478.9,2478.5,0.3734]
[1725180674445,1.16,2478.9,2478.6,1.00494747]
[1725180674645,1.16,2478.9,2478.7,0.38800629]
[1725180674646,0.40345,2478.8,2478.7,0.38800629]
[1725180674850,1.56343,2478.9,2478.7,0.38800629]
[1725180675051,1.56343,2478.9,2478.5,0.77688]
[1725180675243,1.56343,2478.9,2478.6,1.00494714]
[1725180675439,1.56343,2478.9,2478.7,0.38800616]
[1725180675653,1.56343,2478.9,2478.5,0.77688]
[1725180675857,1.56343,2478.9,2478.6,1.00494151]
[1725180676039,1.56343,2478.9,2478.7,0.388004]
[1725180676242,1.56343,2478.9,2478.5,0.3734]
[1725180676439,1.56343,2478.9,2478.6,1.00494338]
[1725180676648,1.56343,2478.9,2478.7,0.38800472]
[1725180676845,1.56343,2478.9,2478.5,0.3734]
[1725180677038,1.56343,2478.9,2478.6,1.00494576]
[1725180677245,1.56343,2478.9,2478.7,0.38800563]
[1725180677556,1.56343,2478.9,2478.8,0.38800563]
[1725180677747,1.56343,2478.9,2478.5,0.77688]
[1725180677951,1.56343,2478.9,2478.6,1.00494102]
[1725180678147,1.56343,2478.9,2478.7,0.77250381]
[1725180678445,1.56343,2478.9,2478.8,0.38800381]
[1725180679245,1.56343,2478.9,2478.7,0.3845]
[1725180679442,1.93323,2478.9,2478.8,0.38800049]
[1725180679950,1.5298,2478.9,2478.8,0.38800049]
[1725180680753,1.93322,2478.9,2478.8,0.38800049]
[1725180681653,1.5298,2478.9,2478.8,0.38800049]
[1725180681853,1.16,2478.9,2478.8,0.76640049]
[1725180683151,1.16,2478.9,2478.8,0.3784]
[1725180683360,1.16,2478.9,2478.8,0.76638497]
[1725180684154,0.3566,2479.0,2478.8,0.76638497]
[1725180684351,0.3566,2479.0,2478.9,0.38798497]
[1725180684558,0.3566,2479.0,2478.9,0.3801]
[1725180684858,0.3566,2479.0,2478.9,0.76808551]
[1725180686157,3.2078,2479.1,2479.0,0.4034]
[1725180686359,3.2078,2479.1,2479.0,1.40824403]
[1725180686564,3.2078,2479.1,2479.0,5.44176697]
[1725180686953,3.2078,2479.1,2479.0,5.03836697]
[1725180688057,3.2078,2479.1,2479.0,5.44176697]
[1725180689855,3.2078,2479.1,2479.0,5.44175037]
[1725180690261,0.39344376,2479.5,2479.3,0.40335]
[1725180690463,0.39344376,2479.5,2479.4,0.7678]
[1725180691765,0.39344376,2479.5,2479.4,1.15568356]
[1725180692161,0.39344376,2479.5,2479.4,0.7678]
[1725180692557,0.00604376,2479.5,2479.4,1.17114]
[1725180692864,0.00604376,2479.5,2479.4,1.1556822]
[1725180693059,0.40936376,2479.5,2479.4,0.3885]
[1725180693755,0.00604376,2479.5,2479.4,0.3885]
[1725180701463,0.00604376,2479.5,2479.4,0.79184]
[1725180702980,0.7354,2479.9,2479.6,0.40329]
[1725180703276,0.7354,2479.9,2479.7,1.1031]
[1725180703663,0.7354,2479.9,2479.7,1.50639]
[1725180704774,0.7354,2479.9,2479.7,1.1031]
[1725180705679,0.7354,2479.9,2479.7,1.50639]
[1725180706068,0.7354,2479.9,2479.7,0.3757]
[1725180706376,0.3533,2479.8,2479.7,0.3757]
[1725180707871,0.7354,2479.9,2479.7,0.77899]
[1725180708078,0.3726,2479.9,2479.7,1.52079]
[1725180708676,0.00604376,2480.0,2479.7,6.3103]
[1725180708872,0.00604376,2480.0,2479.8,0.40327]
[1725180709078,0.00604376,2480.0,2479.7,2.68078]
[1725180709280,0.40928376,2480.0,2479.7,2.68078]
[1725180709572,0.40928376,2480.0,2479.7,1.52078]
[1725180709773,1.1166,2479.9,2479.7,1.52078]
[1725180711973,1.1166,2479.9,2479.7,1.1175]
[1725180712181,1.1166,2479.9,2479.7,0.3757]
[1725180712982,1.51986,2479.9,2479.7,0.3757]
[1725180713881,1.1166,2479.9,2479.7,0.3757]
[1725180714480,1.51986,2479.9,2479.7,0.3757]
[1725180714987,1.1166,2479.9,2479.7,0.3757]
[1725180718582,4.47211106,2479.8,2479.6,0.00604376]
[1725180718888,1.1166,2479.9,2479.6,0.36194376]
[1725180719089,1.1166,2479.9,2479.6,1.53034376]
[1725180719391,1.1166,2479.9,2479.6,1.12704376]
[1725180720582,1.1166,2479.9,2479.6,0.00604376]
[1725180720888,0.40329,2479.7,2479.6,0.00604376]
[1725180726689,4.95314046,2479.8,2479.6,0.00604376]
[1725180726988,0.40329,2479.7,2479.6,0.00604376]
[1725180729387,4.43609,2479.7,2479.6,0.00604376]
[1725180730589,7.64389,2479.7,2479.6,0.00604376]
[1725180730791,13.06606602,2479.7,2479.6,0.00604376]
[1725180731893,9.85826602,2479.7,2479.6,0.00604376]
[1725180735201,9.85826602,2479.7,2479.6,0.39391904]
[1725180735387,9.85826602,2479.7,2479.6,0.00604376]
[1725180737496,9.85826602,2479.7,2479.6,0.39392388]
[1725180739204,0.40336,2479.3,2479.1,3.2078]
[1725180739408,1.56335,2479.4,2479.2,0.38792475]
[1725180739596,0.7542,2479.3,2479.1,3.5905]
[1725180739904,5.4696448,2479.3,2479.2,0.38792186]
[1725180742199,5.4696448,2479.3,2479.1,3.5905]
[1725180743902,5.4696448,2479.3,2479.1,0.3827]
[1725180744597,5.8730048,2479.3,2479.1,0.3827]
[1725180745803,5.4696448,2479.3,2479.1,0.3827]
[1725180747796,5.8730048,2479.3,2479.1,0.3827]
[1725180750007,0.40337,2479.2,2479.1,0.3827]
[1725180752301,4.3425448,2479.3,2479.1,0.3827]
[1725180754093,0.40334,2479.4,2479.1,0.3827]
[1725180755997,2.67333,2479.5,2479.1,0.78608]
[1725180756199,0.40334,2479.4,2479.1,0.3827]
[1725180759304,0.40336,2479.3,2479.1,0.3827]
[1725180760206,0.40335,2479.4,2479.1,0.3827]
[1725180761511,0.40335,2479.4,2479.2,0.3879051]
[1725180761810,0.40335,2479.4,2479.1,0.3827]
[1725180762203,0.40335,2479.4,2479.2,0.38791056]
[1725180762400,0.40335,2479.4,2479.1,0.3827]
[1725180762601,0.40335,2479.4,2479.2,0.38791202]
[1725180762902,0.40335,2479.4,2479.1,0.3827]
[1725180763103,0.40335,2479.4,2479.2,0.387913]
[1725180763308,0.40335,2479.4,2479.1,0.3827]
[1725180763513,0.40335,2479.4,2479.2,0.38791397]
[1725180763713,0.40335,2479.4,2479.1,0.3827]
[1725180763909,0.40335,2479.4,2479.2,0.38791397]
[1725180764108,0.40335,2479.4,2479.1,0.3827]
[1725180764411,0.40335,2479.4,2479.2,0.38790675]
[1725180764612,0.40335,2479.4,2479.1,0.3827]
[1725180764800,0.40335,2479.4,2479.2,0.38791246]
[1725180765003,0.40335,2479.4,2479.1,0.3827]
[1725180765203,0.40335,2479.4,2479.2,0.38791347]
[1725180765408,0.3781,2479.3,2479.1,0.3827]
[1725180765610,0.3781,2479.3,2479.2,0.38791345]
[1725180766508,0.3781,2479.3,2479.1,0.3827]
[1725180766724,0.3781,2479.3,2479.2,0.38791104]
[1725180770015,0.3781,2479.3,2479.2,0.38791382]
[1725180773307,0.3781,2479.3,2479.2,0.3879169]
[1725180774318,1.1103,2479.3,2479.2,0.3879169]
[1725180776120,1.1103,2479.3,2479.2,1.00472517]
[1725180776320,1.1103,2479.3,2479.2,1.00472505]
[1725180776622,1.1103,2479.3,2479.2,0.3879169]
[1725180776822,1.1103,2479.3,2479.2,1.00472809]
[1725180777024,1.1103,2479.3,2479.2,0.3879169]
[1725180777221,1.1103,2479.3,2479.2,1.00472544]
[1725180778721,1.51365,2479.3,2479.2,1.00472544]
[1725180778924,1.51365,2479.3,2479.2,0.3879169]
[1725180779921,1.51365,2479.3,2479.1,0.3827]
[1725180780121,1.51365,2479.3,2479.2,1.00475804]
[1725180781418,1.51365,2479.3,2479.2,1.00475821]
[1725180782421,1.51365,2479.3,2479.1,0.3827]
[1725180782621,1.51365,2479.3,2479.2,1.00475803]
[1725180785924,1.1103,2479.3,2479.2,1.00475803]
[1725180789427,1.1103,2479.3,2479.2,1.00473825]
[1725180789926,3.16262492,2479.4,2479.2,1.00473825]
[1725180790233,3.16262492,2479.5,2479.3,1.00473825]
[1725180790532,3.16262492,2479.5,2479.4,0.76272582]
[1725180790533,7.55354007,2479.5,2479.4,0.76272582]
[1725180791037,8.42371515,2479.5,2479.4,0.76272582]
[1725180792534,11.58880539,2479.5,2479.4,0.76272582]
[1725180792723,7.55600539,2479.5,2479.4,5.19886582]
[1725180792925,3.16509024,2479.9,2479.8,0.40327]
[1725180793133,0.00604376,2480.0,2479.9,0.40326]
[1725180793320,0.00604376,2480.0,2479.9,2.51591353]
[1725180793525,0.00604376,2480.0,2479.9,6.54791353]
[1725180793729,0.00604376,2480.0,2479.9,9.75571353]
[1725180794332,0.00604376,2480.0,2479.9,9.35245353]
[1725180794734,0.00604376,2480.0,2479.9,5.32045353]
[1725180795233,0.00604376,2480.0,2479.9,4.70369324]
[1725180796129,0.00604376,2480.0,2479.9,1.49589324]
[1725180797437,0.00604376,2480.0,2479.9,1.108]
[1725180797629,0.00604376,2480.0,2479.9,1.495803]
[1725180797937,0.00604376,2480.0,2479.9,5.52780446]
[1725180798129,0.00604376,2480.0,2479.9,1.49580446]
[1725180798333,0.00604376,2480.0,2479.9,5.14]
[1725180798740,0.00604376,2480.0,2479.9,1.49579756]
[1725180799235,0.00604376,2480.0,2479.9,1.108]
[1725180809739,0.00604376,2480.0,2479.9,5.54326]
[1725180810445,0.00604376,2480.0,2479.9,5.14]
[1725180811150,0.00604376,2480.0,2479.9,5.54326]
[1725180813054,4.3235,2480.5,2480.2,0.40321]
[1725180813255,4.3235,2480.5,2480.3,0.7711]
[1725180815139,4.3235,2480.5,2480.3,1.1443]
[1725180816747,1.1157,2480.5,2480.3,1.1443]
[1725180818148,0.00604376,2480.6,2480.3,2.3043]
[1725180818447,4.60457017,2480.5,2480.4,0.40318]
[1725180820944,4.60457017,2480.5,2480.3,1.1443]
[1725180821141,4.60457017,2480.5,2480.3,0.3876]
[1725180821342,0.7379,2480.4,2480.3,0.3876]
[1725180824958,4.60457017,2480.5,2480.4,0.40318]
[1725180830966,4.60457017,2480.5,2480.3,0.79078]
[1725180837277,4.60457017,2480.5,2480.4,0.38772342]
[1725180839873,4.60457017,2480.5,2480.2,3.61704376]
[1725180840067,4.60457017,2480.5,2480.3,0.38773542]
[1725180840280,4.60457017,2480.5,2480.3,0.40319]
[1725180840478,4.60457017,2480.5,2480.3,0.77889]
[1725180840875,4.60457017,2480.5,2480.3,0.3757]
[1725180841373,0.367,2480.4,2480.3,0.3757]
[1725180841578,0.367,2480.4,2480.3,0.76343734]
[1725180841881,0.367,2480.4,2480.3,1.16662734]
[1725180842675,0.367,2480.4,2480.3,1.78312222]
[1725180843075,0.367,2480.4,2480.3,1.16661663]
[1725180843280,0.367,2480.4,2480.3,1.78311035]
[1725180843576,0.367,2480.4,2480.3,1.37992035]
[1725180843778,0.367,2480.4,2480.3,0.76342663]
[1725180847379,0.367,2480.4,2480.3,1.37993216]
[1725180853479,0.79729376,2480.6,2480.3,1.5357]
[1725180853684,0.79729376,2480.6,2480.4,1.00424264]
[1725180853988,0.79729376,2480.6,2480.5,1.0042157]
[1725180854491,4.82849376,2480.6,2480.5,1.0042157]
[1725180856483,0.79729376,2480.6,2480.5,1.0042157]
[1725180859590,4.82849376,2480.6,2480.5,1.0042157]
[1725180859794,0.79729376,2480.6,2480.5,1.0042157]
[1725180860592,0.79729376,2480.6,2480.3,1.5357]
[1725180860791,2.63793054,2480.4,2480.3,1.5357]
[1725180861095,2.63793054,2480.4,2480.3,2.94309586]
[1725180864000,2.63793054,2480.4,2480.3,2.55537481]
[1725180864291,2.63793054,2480.4,2480.3,2.94309705]
[1725180867690,2.63793054,2480.4,2480.3,2.32661092]
[1725180867997,2.63793054,2480.4,2480.3,2.94309551]
[1725180869092,2.63793054,2480.4,2480.3,6.97509551]
[1725180871293,13.11776464,2480.4,2480.3,1.00420551]
[1725180871590,13.11776464,2480.4,2480.3,0.38167716]
[1725180871591,18.10981464,2480.4,2480.3,0.38167716]
[1725180871785,16.54834371,2480.4,2480.3,0.38167716]
[1725180871994,12.4114765,2480.4,2480.3,0.38167716]
[1725180872187,3.91264186,2480.4,2480.3,1.40142354]
[1725180872388,0.7488,2480.4,2480.3,1.38583354]
[1725180874691,0.7488,2480.4,2480.3,1.00412261]
[1725180875796,1.15198,2480.4,2480.3,0.61652261]
[1725180876495,0.40319,2480.3,2480.2,0.00604376]
[1725180876695,0.77519,2480.3,2480.2,0.62261117]
[1725180878105,0.77519,2480.3,2480.2,0.62260316]
[1725180881098,4.80719,2480.3,2480.2,0.62260316]
[1725180881300,9.46406017,2480.3,2480.2,0.00604376]
[1725180883007,5.43206017,2480.3,2480.2,0.00604376]
[1725180883204,0.77519,2480.3,2480.2,0.00604376]
[1725180883406,0.77519,2480.3,2480.2,0.39381444]
[1725180888614,0.77519,2480.3,2480.2,0.39381482]
[1725180890905,0.372,2480.3,2480.2,0.39381482]
[1725180891405,1.15198,2480.4,2480.2,0.39381482]
[1725180891617,1.15198,2480.4,2480.2,0.00604376]
[1725180891915,1.15198,2480.4,2480.2,0.38984376]
[1725180893702,0.3615,2480.4,2480.3,0.40319]
[1725180893905,0.3615,2480.4,2480.3,0.79094631]
[1725180897715,0.3615,2480.4,2480.3,0.38775631]
[1725180897922,2.63444344,2480.4,2480.3,1.95093631]
[1725180898316,2.63444344,2480.4,2480.3,2.56742981]
[1725180898521,2.63444344,2480.5,2480.3,2.56742981]
[1725180898713,2.63444344,2480.5,2480.4,0.75195631]
[1725180898914,4.66505267,2480.5,2480.4,0.75195631]
[1725180899410,7.29957247,2480.5,2480.4,0.75195631]
[1725180900217,7.29962297,2480.5,2480.4,0.75195631]
[1725180900825,4.66505267,2480.5,2480.4,0.75195631]
[1725180901023,4.66505267,2480.5,2480.4,0.3642]
[1725180901324,4.66505267,2480.5,2480.4,0.75194214]
[1725180901618,4.66505267,2480.5,2480.4,0.3642]
[1725180901921,4.66505267,2480.5,2480.4,0.75194015]
[1725180902814,0.00604376,2480.6,2480.4,0.75194015]
[1725180903014,0.00604376,2480.6,2480.4,0.3642]
[1725180905408,0.00604376,2480.6,2480.5,0.38773039]
[1725180905615,0.00604376,2480.6,2480.4,0.3642]
[1725180906018,0.00604376,2480.6,2480.5,0.38773547]
[1725180906724,0.00604376,2480.6,2480.5,0.38773197]
[1725180913433,3.16988562,2480.6,2480.5,0.38773197]
[1725180913933,0.00604376,2480.6,2480.5,0.38773197]
[1725180915543,3.16988562,2480.6,2480.5,0.38773197]
[1725180915749,0.00604376,2480.6,2480.5,0.38773197]
[1725180916047,3.16988562,2480.6,2480.5,0.38773197]
[1725180917248,3.16988562,2480.6,2480.5,0.38773468]
[1725180920956,0.00604376,2480.6,2480.5,0.38773683]
[1725180921243,3.57302562,2480.6,2480.5,0.38773683]
[1725180922646,6.78082562,2480.6,2480.5,0.38773683]
[1725180922841,6.78082562,2480.6,2480.4,0.3642]
[1725180923041,6.78082562,2480.6,2480.5,0.38776249]
[1725180923657,0.40316,2480.5,2480.4,0.3642]
[1725180923949,6.37768562,2480.6,2480.4,0.75194969]
[1725180923950,6.78083562,2480.6,2480.4,0.75194969]
[1725180924250,6.78083562,2480.6,2480.5,0.38774969]
[1725180925850,6.78083562,2480.6,2480.5,0.38774268]
[1725180926551,0.40919376,2480.6,2480.5,0.38774268]
[1725180926743,3.57303562,2480.6,2480.5,0.38774268]
[1725180927544,3.16988562,2480.6,2480.5,0.38773222]
[1725180927952,0.00604376,2480.6,2480.5,0.38773222]
[1725180930949,0.00604376,2480.6,2480.5,0.79089222]
[1725180931144,0.00604376,2480.6,2480.5,1.51699222]
[1725180931761,0.00604376,2480.6,2480.5,1.11383222]
[1725180932652,3.16988562,2480.6,2480.5,1.11383222]
[1725180932852,0.00604376,2480.6,2480.5,1.11383222]
[1725180933358,3.16988562,2480.6,2480.5,1.11383222]
[1725180933961,3.16988562,2480.6,2480.5,0.7261]
[1725180934458,3.16988562,2480.6,2480.5,1.11382354]
[1725180936255,3.16988562,2480.6,2480.5,1.73031247]
[1725180937458,3.16988562,2480.6,2480.5,1.73030606]
[1725180940864,3.16988562,2480.6,2480.5,0.7261]
[1725180941158,3.16988562,2480.6,2480.5,1.73031384]
[1725180943660,0.00604376,2480.6,2480.5,1.73031384]
[1725180943858,3.17000562,2480.6,2480.5,1.73031384]
[1725180944165,3.17002136,2480.6,2480.5,1.73030476]
[1725180947566,3.17002136,2480.6,2480.5,1.7302973]
[1725180950169,3.17002136,2480.6,2480.5,5.7614973]
[1725180950368,0.87629762,2480.7,2480.5,24.79942578]
[1725180950574,5.28617793,2481.4,2480.6,7.6387639]
[1725180950575,2.63706657,2481.1,2480.6,7.6387639]
[1725180950772,2.63706657,2481.1,2481.0,1.46095597]
[1725180950975,2.63706657,2481.1,2481.0,2.46484676]
[1725180951169,0.77561,2481.4,2481.0,12.49524676]
[1725180951369,0.78165376,2481.4,2481.2,1.16]
[1725180951669,0.78165376,2481.4,2481.3,0.38759958]
[1725180952272,0.40303,2481.3,2481.2,1.16]
[1725180952477,1.14463,2481.3,2481.2,1.5476246]
[1725180952677,1.14463,2481.3,2481.2,5.5780246]
[1725180953278,1.14463,2481.3,2481.2,4.0304]
[1725180953472,1.14463,2481.3,2481.2,4.41801694]
[1725180954075,1.14463,2481.3,2480.9,3.81149645]
[1725180954076,0.40307,2481.1,2480.9,3.2078]
[1725180954273,0.3668,2481.0,2480.9,3.2078]
[1725180954578,0.3668,2481.0,2480.9,3.59542504]
[1725180954872,0.3668,2481.0,2480.9,7.62582504]
[1725180955069,0.3668,2481.0,2480.9,4.41802504]
[1725180955269,0.3668,2481.0,2480.9,7.62582504]
[1725180955468,0.3668,2481.0,2480.9,3.59542504]
[1725180955774,0.3668,2481.0,2480.9,7.62582504]
[1725180956779,0.7416,2481.3,2480.9,8.78582504]
[1725180956780,0.40306,2481.2,2480.9,8.78582504]
[1725180956983,0.76986,2481.2,2481.0,0.76672504]
[1725180957172,0.76986,2481.2,2481.0,0.3791]
[1725180959375,0.40306,2481.1,2481.0,0.3791]
[1725180959579,0.40306,2481.1,2480.8,1.16]
[1725180959772,0.40306,2481.1,2480.8,1.5215]
[1725180960077,3.61086,2481.1,2480.8,1.5215]
[1725180960385,0.40307,2481.1,2480.8,1.5215]
[1725180960584,0.40308,2481.0,2480.8,1.5215]
[1725180960875,0.3674,2480.9,2480.8,1.5215]
[1725180961194,1.0806,2480.9,2480.8,1.90916224]
[1725180961478,1.0806,2480.9,2480.8,6.32802928]
[1725180962082,1.0806,2480.9,2480.8,5.96651693]
[1725180962083,1.48369,2480.9,2480.8,5.96651693]
[1725180962990,1.0806,2480.9,2480.8,5.57885469]
[1725180963369,1.0806,2480.9,2480.8,5.1912]
[1725180963570,1.0806,2480.9,2480.8,5.57883901]
[1725180964578,1.0806,2480.9,2480.8,5.1912]
[1725180965075,1.0806,2480.9,2480.8,5.57885816]
[1725180965379,1.0806,2480.9,2480.8,5.1912]
[1725180967284,1.48369,2480.9,2480.8,5.1912]
[1725180967878,1.0806,2480.9,2480.8,5.1912]
[1725180969090,1.48369,2480.9,2480.8,4.0312]
[1725180969285,0.40314,2480.7,2480.5,3.2078]
[1725180969490,0.40314,2480.7,2480.5,3.5723]
[1725180970287,0.40314,2480.7,2480.5,4.7323]
[1725180971785,0.40314,2480.7,2480.5,1.5245]
[1725180972188,0.3887,2480.6,2480.5,1.5245]
[1725180972389,0.3887,2480.6,2480.5,1.91220266]
[1725180972692,0.3887,2480.6,2480.5,5.94340266]
[1725180978190,0.3887,2480.6,2480.5,1.91220266]
[1725180978701,0.3887,2480.6,2480.5,5.94340266]
[1725180978892,0.3887,2480.6,2480.5,1.91220266]
[1725180979393,0.3887,2480.6,2480.5,1.5245]
[1725180979600,0.3887,2480.6,2480.5,1.91220367]
[1725180980095,0.3887,2480.6,2480.5,5.94340367]
[1725180980293,0.3887,2480.6,2480.5,1.91220367]
[1725180980596,0.3887,2480.6,2480.5,0.38770367]
[1725180980798,0.3887,2480.6,2480.2,0.62255406]
[1725180980799,0.40319,2480.3,2480.2,0.62255406]
[1725180981104,0.40319,2480.3,2480.2,0.00604376]
[1725180981105,1.56319,2480.3,2480.2,0.00604376]
[1725180981297,5.59519,2480.3,2480.2,0.00604376]
[1725180981497,5.95519,2480.3,2480.2,0.00604376]
[1725180990199,1.92319,2480.3,2480.2,0.00604376]
[1725180993902,0.76319,2480.3,2480.2,0.00604376]
[1725181002616,3.9338,2480.5,2480.2,0.00604376]
[1725181002819,8.32413817,2480.8,2480.3,1.16]
[1725181002820,0.3652,2480.7,2480.3,1.16]
[1725181003022,0.40313,2480.7,2480.4,1.1061]
[1725181003209,4.163,2480.8,2480.4,1.50927]
[1725181003410,0.40311,2480.8,2480.4,1.50927]
[1725181003610,0.40313,2480.7,2480.4,1.50927]
[1725181004111,0.3704,2480.6,2480.4,1.50927]
[1725181009322,0.3704,2480.6,2480.4,1.1061]
[1725181012815,0.3704,2480.6,2480.4,1.50928]
[1725181013219,0.40313,2480.7,2480.4,1.50928]
[1725181013423,0.77852,2480.8,2480.4,1.50928]
[1725181019127,1.8141,2480.5,2480.4,1.50928]
[1725181019331,1.8141,2480.5,2480.4,1.89699836]
[1725181019533,1.8141,2480.5,2480.4,5.92819836]
[1725181022231,1.8141,2480.5,2480.4,6.54466036]
[1725181027328,1.8141,2480.5,2480.4,5.54048]
[1725181027525,1.8141,2480.5,2480.4,6.54466004]
[1725181027730,1.8141,2480.5,2480.4,7.70466004]
[1725181030533,1.8141,2480.5,2480.4,6.70048]
[1725181030729,1.8141,2480.5,2480.4,7.7046395]
[1725181032134,1.8141,2480.5,2480.4,3.6734395]